fUSD/lending_fUSD_20240403
["ID","MTS","AMOUNT","RATE_DAILY","PERIOD"]
[321423894,1712182273982,-150.0,0.00052,2]
[321423895,1712182273993,-150.0,0.00052,2]
[321423896,1712182274002,-150.0,0.00052,2]
[321423897,1712182274012,-150.0,0.00052,2]
[321423898,1712182274022,-150.0,0.00052,2]
[321423899,1712182274033,-7024.54751301,0.00052,3]
[321423900,1712182274043,-858.54962194,0.00052,90]
[321423901,1712182274052,-84970.43645303,0.00052,30]
[321423902,1712182274062,-403.0,0.00052,30]
[321423903,1712182274073,-172.76,0.00052,7]
[321423904,1712182274084,-172.76,0.00052,7]
[321423905,1712182274094,-172.76,0.00052,7]
[321423906,1712182274104,-172.76,0.00052,7]
[321423907,1712182274114,-172.76,0.00052,7]
[321423908,1712182274124,-172.76,0.00052,7]
[321423909,1712182274134,-172.76,0.00052,7]
[321423910,1712182274145,-172.76,0.00052,7]
[321423911,1712182274155,-172.76,0.00052,7]
[321423912,1712182274164,-172.76,0.00052,7]
[321423913,1712182274173,-172.76,0.00052,7]
[321423914,1712182274182,-172.76,0.00052,7]
[321423915,1712182274191,-172.76,0.00052,7]
[321423916,1712182274201,-172.76,0.00052,7]
[321423917,1712182274210,-172.76,0.00052,7]
[321423918,1712182274219,-172.76,0.00052,7]
[321423919,1712182274228,-172.76,0.00052,7]
[321423920,1712182274237,-172.76,0.00052,7]
[321423921,1712182274246,-172.76,0.00052,7]
[321423922,1712182274255,-172.76,0.00052,7]
[321423923,1712182274265,-172.76,0.00052,7]
[321423924,1712182274274,-172.76,0.00052,7]
[321423925,1712182274284,-172.76,0.00052,7]
[321423926,1712182274294,-172.76,0.00052,7]
[321423927,1712182274303,-7804.15,0.00052,7]
[321423928,1712182274312,-7804.15,0.00052,7]
[321423929,1712182274322,-7804.15,0.00052,7]
[321423930,1712182274332,-7804.15,0.00052,7]
[321423931,1712182274341,-7804.15,0.00052,7]
[321423932,1712182274351,-7804.15,0.00052,7]
[321423933,1712182274360,-7804.15,0.00052,7]
[321423934,1712182274370,-7804.15,0.00052,7]
[321423935,1712182274379,-7804.15,0.00052,7]
[321423936,1712182274388,-7804.15,0.00052,7]
[321423937,1712182274397,-7804.15,0.00052,7]
[321423938,1712182274407,-7804.15,0.00052,7]
[321423939,1712182274417,-7804.15,0.00052,7]
[321423940,1712182274426,-7804.15,0.00052,7]
[321423941,1712182274435,-7804.15,0.00052,7]
[321423942,1712182274445,-7804.15,0.00052,7]
[321423943,1712182274454,-7804.15,0.00052,7]
[321423944,1712182274463,-7804.15,0.00052,7]
[321423945,1712182274472,-7804.15,0.00052,7]
[321423946,1712182274482,-7804.15,0.00052,7]
[321423947,1712182274492,-582.55,0.00052054,60]
[321423948,1712182274501,-1000.0,0.00052054,120]
[321423949,1712182274511,-1029.0,0.00052054,30]
[321423950,1712182274520,-1000.0,0.00052055,120]
[321423951,1712182274530,-39757.55,0.00052055,30]
[321423952,1712182274540,-406.3,0.00052055,2]
[321423953,1712182274549,-150.0,0.00052083,120]
[321423954,1712182274559,-3000.0,0.000521,2]
[321423955,1712182274568,-157.1757639,0.0005211,120]
[321423956,1712182274578,-151.0,0.0005211,120]
[321423957,1712182274591,-151.0,0.00052219,120]
[321423958,1712182274601,-157.33985921,0.00052261,60]
[321423959,1712182274611,-159.96854777,0.00052269,60]
[321423960,1712182274621,-203.19613583,0.0005227,60]
[321423961,1712182274631,-5024.82841,0.00052315,30]
[321423962,1712182274640,-157.1757639,0.00052356,120]
[321423963,1712182274649,-155.78714108,0.00052358,60]
[321423964,1712182274660,-1052.25,0.00052368,2]
[321423965,1712182274671,-23338.60958789,0.0005239,7]
[321423966,1712182274680,-167.52558322,0.00052442,60]
[321423967,1712182274689,-211.70038815,0.00052446,60]
[321423968,1712182274699,-183.33333334,0.00052466,120]
[321423969,1712182274708,-153.54975412,0.00052469,60]
[321423970,1712182274718,-529.32078117,0.00052529,120]
[321423971,1712182274728,-152.0,0.00052566,22]
[321423972,1712182274738,-157.1757639,0.00052575,120]
[321423973,1712182274747,-582.55,0.00052602,60]
[321423974,1712182274756,-825.53393095,0.00052602,120]
[321423975,1712182274765,-2123.79,0.00052602,120]
[321423976,1712182274774,-561.909525,0.0005262,2]
[321423977,1712182274783,-167.52558323,0.00052657,60]
[321423978,1712182274792,-203.19613583,0.00052709,60]
[321423979,1712182274801,-509.54232732,0.00052725,60]
[321423980,1712182274810,-509.54232732,0.00052773,60]
[321423981,1712182274820,-15000.0,0.0005278,15]
[321423982,1712182274831,-151.0,0.00052795,120]
[321423983,1712182274840,-157.1757639,0.00052822,120]
[321423984,1712182274850,-1014.44,0.00052835,2]
[321423985,1712182274859,-166.66666667,0.00052878,60]
[321423986,1712182274868,-1310.36528962,0.000529,30]
[321423987,1712182274877,-197.38677701,0.00052944,60]
[321423988,1712182274886,-200000.0,0.00053,53]
[321423989,1712182274895,-569.42101962,0.00053,2]
[321423990,1712182274905,-287.8,0.00053,31]
[321423991,1712182274915,-20000.0,0.00053,10]
[321423992,1712182274924,-300.0,0.00053,30]
[321423993,1712182275071,-10391.1450352,0.00053,7]
[321423994,1712182275098,-1072.0,0.00053,100]
[321423995,1712182275107,-158.9516705,0.00053032,60]
[321423996,1712182275116,-157.1757639,0.00053041,120]
[321423997,1712182275125,-529.32078117,0.00053076,120]
[321423998,1712182275135,-582.55,0.0005315,60]
[321423999,1712182275144,-1014.44,0.0005315,2]
[321424000,1712182275153,-541.321,0.000532,14]
[321424001,1712182275163,-194.17669397,0.000532,120]
[321424002,1712182275173,-194.17669396,0.000532,120]
[321424003,1712182275182,-194.17669396,0.000532,120]
[321424004,1712182275191,-194.17669396,0.000532,120]
[321424005,1712182275201,-194.17669396,0.000532,120]
[321424006,1712182275210,-183.33333334,0.00053205,120]
[321424007,1712182275219,-155.2251499,0.00053276,60]
[321424008,1712182275228,-157.1757639,0.00053288,120]
[321424009,1712182275237,-5859.37448454,0.000533,7]
[321424010,1712182275246,-441.57052603,0.0005331,2]
[321424011,1712182275255,-160.0,0.00053332,10]
[321424012,1712182275265,-160.0,0.00053341,10]
[321424013,1712182275274,-160.0,0.00053341,10]
[321424014,1712182275283,-203.19613605,0.00053357,60]
[321424015,1712182275292,-152.0,0.00053361,23]
[321424016,1712182275302,-602.12417404,0.00053363,60]
[321424017,1712182275311,-500.0,0.00053424,30]
[321424018,1712182275321,-2123.79,0.00053424,120]
[321424019,1712182275330,-155.2251499,0.00053434,60]
[321424020,1712182275340,-151.0,0.00053479,120]
[321424021,1712182275348,-71375.72002725,0.00053491,7]
[321424022,1712182275357,-4113.3697648,0.000535,40]
[321424023,1712182275367,-1072.0,0.000535,101]
[321424024,1712182275376,-159.96854777,0.00053505,60]
[321424025,1712182275385,-157.1757639,0.00053507,120]
[321424026,1712182275394,-553.0,0.00053507,120]
[321424027,1712182275404,-539.0,0.00053507,120]
[321424028,1712182275413,-509.0,0.00053534,120]
[321424029,1712182275423,-211.70038844,0.00053538,60]
[321424030,1712182275432,-153.54975412,0.00053567,60]
[321424031,1712182275441,-509.54232732,0.00053618,60]
[321424032,1712182275450,-529.32078117,0.00053623,120]
[321424033,1712182275459,-176.26740747,0.00053639,60]
[321424034,1712182275468,-553.0,0.00053644,120]
[321424035,1712182275478,-539.0,0.00053644,120]
[321424036,1712182275487,-509.0,0.00053671,120]
[321424037,1712182275496,-582.55,0.00053698,60]
[321424038,1712182275505,-1092.8897832,0.00053698,5]
[321424039,1712182275514,-300.0,0.000537,14]
[321424040,1712182275524,-149776.28608833,0.00053708,120]
[321424041,1712182275534,-387.60626693,0.0005375,30]
[321424042,1712182275543,-157.1757639,0.00053753,120]
[321424043,1712182275552,-555.0,0.00053781,120]
[321424044,1712182275562,-539.0,0.00053781,120]
[321424045,1712182275571,-800.0,0.00053794,60]
[321424046,1712182275581,-197.38677701,0.00053807,60]
[321424047,1712182275592,-509.0,0.00053808,120]
[321424048,1712182275603,-153.31709142,0.00053842,60]
[321424049,1712182275613,-167.01357355,0.00053856,93]
[321424050,1712182275622,-1000.0,0.000539,2]
[321424051,1712182275632,-153.32268092,0.000539,120]
[321424052,1712182275642,-336.0,0.000539,30]
[321424053,1712182275653,-539.0,0.00053918,120]
[321424054,1712182275664,-602.12417404,0.00053925,60]
[321424055,1712182275674,-509.0,0.00053945,120]
[321424056,1712182275686,-7556.35567549,0.00053967,120]
[321424057,1712182275695,-643.9353,0.00053967,120]
[321424058,1712182275704,-500.0,0.00053972,35]
[321424059,1712182275713,-157.1757639,0.00053973,120]
[321424060,1712182275723,-1005.16160769,0.00053999,15]
[321424061,1712182275733,-5702.25321371,0.00053999,15]
[321424062,1712182275742,-7515.55654052,0.00053999,15]
[321424063,1712182275752,-4568.39026316,0.00053999,15]
[321424064,1712182275762,-38242.17669179,0.00053999,15]
[321424065,1712182275772,-12097.63665729,0.00053999,15]
[321424066,1712182275781,-200000.0,0.00054,54]
[321424067,1712182275791,-341999.40499857,0.00054,2]
[321424068,1712182275800,-156.35855924,0.00054,4]
[321424069,1712182275810,-696.88749781,0.00054,30]
[321424070,1712182275821,-4823.03564792,0.00054,30]
[321424071,1712182275833,-42000.0,0.00054,8]
[321424072,1712182275842,-35360.43159864,0.00054,15]
[321424073,1712182275851,-20000.0,0.00054,5]
[321424074,1712182275860,-500.0,0.00054,7]
[321424075,1712182275870,-81019.90993025,0.00054,8]
[321424076,1712182275879,-150.0,0.00054,30]
[321424077,1712182275889,-6000.0,0.00054,17]
[321424078,1712182275899,-232604.02071008,0.00054,2]
[321424079,1712182275910,-255.0,0.00054,15]
[321424080,1712182275918,-89671.93,0.00054,60]
[321424081,1712182275927,-805.65830559,0.00054,60]
[321424082,1712182275937,-10000.0,0.00054,7]
[321424083,1712182275948,-20000.0,0.00054,7]
[321424084,1712182275957,-1000.0,0.00054,7]
[321424085,1712182275968,-155.0,0.00054,4]
[321424086,1712182275979,-74490.83127654,0.00054,120]
[321424087,1712182275989,-489.84,0.00054,120]
[321424088,1712182276001,-968.24,0.00054,120]
[321424089,1712182276012,-224.95351368,0.00054,120]
[321424090,1712182276022,-1072.0,0.00054,102]
[321424091,1712182276031,-153.54975419,0.00054008,60]
[321424092,1712182276043,-155.2251499,0.00054016,60]
[321424093,1712182276053,-539.0,0.00054055,120]
[321424094,1712182276065,-155.22515005,0.00054055,60]
[321424095,1712182276075,-509.54232732,0.00054065,60]
[321424096,1712182276084,-509.0,0.00054082,120]
[321424097,1712182276094,-152.0,0.00054156,24]
[321424098,1712182276106,-151.0,0.00054164,120]
[321424099,1712182276115,-529.32078117,0.00054171,120]
[321424100,1712182276125,-539.0,0.00054192,120]
[321424101,1712182276135,-300.0,0.000542,14]
[321424102,1712182276145,-172.76,0.000542,7]
[321424103,1712182276156,-172.76,0.000542,7]
[321424104,1712182276166,-172.76,0.000542,7]
[321424105,1712182276175,-172.76,0.000542,7]
[321424106,1712182276185,-172.76,0.000542,7]
[321424107,1712182276195,-172.76,0.000542,7]
[321424108,1712182276205,-172.76,0.000542,7]
[321424109,1712182276216,-172.76,0.000542,7]
[321424110,1712182276226,-172.76,0.000542,7]
[321424111,1712182276235,-172.76,0.000542,7]
[321424112,1712182276244,-172.76,0.000542,7]
[321424113,1712182276253,-172.76,0.000542,7]
[321424114,1712182276262,-172.76,0.000542,7]
[321424115,1712182276271,-172.76,0.000542,7]
[321424116,1712182276280,-172.76,0.000542,7]
[321424117,1712182276289,-172.76,0.000542,7]
[321424118,1712182276298,-172.76,0.000542,7]
[321424119,1712182276307,-172.76,0.000542,7]
[321424120,1712182276316,-172.76,0.000542,7]
[321424121,1712182276325,-172.76,0.000542,7]
[321424122,1712182276334,-172.76,0.000542,7]
[321424123,1712182276343,-172.76,0.000542,7]
[321424124,1712182276352,-172.76,0.000542,7]
[321424125,1712182276361,-172.76,0.000542,7]
[321424126,1712182276370,-7804.15,0.000542,7]
[321424127,1712182276380,-7804.15,0.000542,7]
[321424128,1712182276391,-7804.15,0.000542,7]
[321424129,1712182276401,-7804.15,0.000542,7]
[321424130,1712182276410,-7804.15,0.000542,7]
[321424131,1712182276420,-7804.15,0.000542,7]
[321424132,1712182276431,-7804.15,0.000542,7]
[321424133,1712182276440,-7804.15,0.000542,7]
[321424134,1712182276450,-7804.15,0.000542,7]
[321424135,1712182276461,-7804.15,0.000542,7]
[321424136,1712182276470,-7804.15,0.000542,7]
[321424137,1712182276480,-7804.15,0.000542,7]
[321424138,1712182276489,-7804.15,0.000542,7]
[321424139,1712182276499,-7804.15,0.000542,7]
[321424140,1712182276509,-7804.15,0.000542,7]
[321424141,1712182276518,-7804.15,0.000542,7]
[321424142,1712182276527,-7804.15,0.000542,7]
[321424143,1712182276537,-7804.15,0.000542,7]
[321424144,1712182276546,-7804.15,0.000542,7]
[321424145,1712182276556,-7804.15,0.000542,7]
[321424146,1712182276566,-509.0,0.00054219,120]
[321424147,1712182276575,-582.55,0.00054246,60]
[321424148,1712182276586,-2123.79,0.00054246,120]
[321424149,1712182276601,-1014.44,0.0005425,2]
[321424150,1712182276611,-166.8009127,0.00054269,60]
[321424151,1712182276622,-150.0,0.00054313,7]
[321424152,1712182276632,-152.23387179,0.00054353,60]
[321424153,1712182276642,-509.0,0.00054356,120]
[321424154,1712182276651,-153.31709142,0.00054376,60]
[321424155,1712182276662,-20000.0,0.00054383,120]
[321424156,1712182276671,-16775.15854833,0.00054383,120]
[321424157,1712182276680,-198.6880857,0.00054394,60]
[321424158,1712182276690,-159.96854787,0.00054398,60]
[321424159,1712182276699,-517.35580509,0.000544,110]
[321424160,1712182276710,-151.0,0.00054438,120]
[321424161,1712182276719,-509.5423275,0.00054446,60]
[321424162,1712182276728,-13360.0,0.00054463,7]
[321424163,1712182276737,-1117.8,0.00054466,120]
[321424164,1712182276748,-500.0,0.00054473,31]
[321424165,1712182276757,-500.0,0.00054473,31]
[321424166,1712182276768,-500.0,0.00054473,31]
[321424167,1712182276777,-500.0,0.00054473,31]
[321424168,1712182276786,-500.0,0.00054473,31]
[321424169,1712182276795,-500.0,0.00054473,31]
[321424170,1712182276804,-500.0,0.00054473,43]
[321424171,1712182276816,-4731.18487151,0.0005448,30]
[321424172,1712182276827,-163.47237623,0.00054497,60]
[321424173,1712182276837,-321.2260466,0.000545,30]
[321424174,1712182276846,-1072.0,0.000545,103]
[321424175,1712182276857,-325.72816251,0.0005452,40]
[321424176,1712182276867,-7000.0,0.0005452,120]
[321424177,1712182276877,-1014.44,0.00054565,2]
[321424178,1712182276888,-602.12417404,0.00054607,60]
[321424179,1712182276898,-150.0,0.0005463,75]
[321424180,1712182276908,-1052.25,0.00054632,2]
[321424181,1712182276917,-150.0,0.00054636,7]
[321424182,1712182276929,-388.42808272,0.00054642,60]
[321424183,1712182276938,-300.0,0.000547,15]
[321424184,1712182276948,-166.99346797,0.00054709,60]
[321424185,1712182276957,-529.82,0.00054718,120]
[321424186,1712182276967,-25000.0,0.00054762,35]
[321424187,1712182276977,-25000.0,0.00054762,35]
[321424188,1712182276986,-2197.15897014,0.00054762,35]
[321424189,1712182276995,-489.65035407,0.00054762,35]
[321424190,1712182277004,-1042.88,0.00054767,120]
[321424191,1712182277014,-197.38677701,0.00054771,60]
[321424192,1712182277023,-150.0,0.00054788,7]
[321424193,1712182277032,-291.67523411,0.00054792,60]
[321424194,1712182277041,-183.22184318,0.00054792,30]
[321424195,1712182277050,-728.82867782,0.00054792,30]
[321424196,1712182277060,-9702.92785079,0.00054793,30]
[321424197,1712182277069,-131093.27756661,0.00054793,30]
[321424198,1712182277079,-1000.0,0.00054793,120]
[321424199,1712182277088,-1468.74643894,0.00054794,30]
[321424200,1712182277098,-500.0,0.00054794,30]
[321424201,1712182277108,-500.0,0.00054794,30]
[321424202,1712182277117,-500.0,0.00054794,30]
[321424203,1712182277127,-500.0,0.00054794,30]
[321424204,1712182277136,-170.22577968,0.00054794,7]
[321424205,1712182277146,-10415.06202819,0.00054794,5]
[321424206,1712182277155,-1029.0,0.00054794,30]
[321424207,1712182277165,-2125.07,0.00054794,15]
[321424208,1712182277174,-503.08983357,0.00054794,120]
[321424209,1712182277184,-380.80550965,0.00054794,120]
[321424210,1712182277193,-500.0,0.00054794,120]
[321424211,1712182277202,-500.0,0.00054794,120]
[321424212,1712182277211,-500.0,0.00054794,120]
[321424213,1712182277221,-645.90434261,0.00054794,120]
[321424214,1712182277231,-500.0,0.00054794,120]
[321424215,1712182277240,-500.0,0.00054794,120]
[321424216,1712182277250,-500.61440784,0.00054794,120]
[321424217,1712182277259,-500.0,0.00054794,120]
[321424218,1712182277269,-513.37179375,0.00054794,120]
[321424219,1712182277278,-503.21510258,0.00054794,120]
[321424220,1712182277287,-502.00841153,0.00054794,120]
[321424221,1712182277296,-500.0,0.00054794,120]
[321424222,1712182277305,-500.0,0.00054794,120]
[321424223,1712182277314,-500.0,0.00054794,120]
[321424224,1712182277323,-500.0,0.00054794,120]
[321424225,1712182277332,-581.34925961,0.00054794,120]
[321424226,1712182277341,-225.86270886,0.00054794,2]
[321424227,1712182277351,-172.77070727,0.00054794,120]
[321424228,1712182277360,-500.0,0.00054794,120]
[321424229,1712182277369,-502.57798258,0.00054794,120]
[321424230,1712182277378,-500.0,0.00054794,120]
[321424231,1712182277387,-500.0,0.00054794,120]
[321424232,1712182277397,-500.0,0.00054794,120]
[321424233,1712182277408,-571.36924352,0.00054794,120]
[321424234,1712182277419,-500.0,0.00054794,120]
[321424235,1712182277429,-500.0,0.00054794,120]
[321424236,1712182277438,-500.0,0.00054794,120]
[321424237,1712182277448,-500.0,0.00054794,120]
[321424238,1712182277457,-507.32879763,0.00054794,120]
[321424239,1712182277467,-500.0,0.00054794,120]
[321424240,1712182277477,-371.42370589,0.00054794,120]
[321424241,1712182277487,-561.19997747,0.00054794,120]
[321424242,1712182277496,-500.0,0.00054794,120]
[321424243,1712182277507,-500.0,0.00054794,120]
[321424244,1712182277515,-500.0,0.00054794,120]
[321424245,1712182277526,-505.56271148,0.00054794,120]
[321424246,1712182277537,-500.0,0.00054794,120]
[321424247,1712182277546,-502.34492419,0.00054794,120]
[321424248,1712182277556,-502.62877049,0.00054794,120]
[321424249,1712182277565,-641.26628074,0.00054794,120]
[321424250,1712182277574,-500.0,0.00054794,120]
[321424251,1712182277585,-503.91463263,0.00054794,120]
[321424252,1712182277598,-463.67023749,0.00054794,120]
[321424253,1712182277607,-500.0,0.00054794,120]
[321424254,1712182277616,-500.0,0.00054794,120]
[321424255,1712182277780,-501.31135148,0.00054794,120]
[321424256,1712182277790,-503.99730774,0.00054794,120]
[321424257,1712182277799,-508.32905957,0.00054794,120]
[321424258,1712182277808,-500.0,0.00054794,120]
[321424259,1712182277817,-500.0,0.00054794,120]
[321424260,1712182277826,-500.0,0.00054794,120]
[321424261,1712182277835,-200.0,0.00054794,10]
[321424262,1712182277844,-504.08964628,0.00054794,120]
[321424263,1712182277853,-500.0,0.00054794,120]
[321424264,1712182277862,-504.86374113,0.00054794,120]
[321424265,1712182277871,-504.33148709,0.00054794,120]
[321424266,1712182277880,-500.0,0.00054794,120]
[321424267,1712182277889,-500.0,0.00054794,120]
[321424268,1712182277898,-500.0,0.00054794,120]
[321424269,1712182277908,-500.0,0.00054794,120]
[321424270,1712182277917,-500.0,0.00054794,120]
[321424271,1712182277927,-506.37662323,0.00054794,120]
[321424272,1712182277936,-735.78,0.00054794,120]
[321424273,1712182277945,-508.18993006,0.00054794,120]
[321424274,1712182277955,-791.38,0.00054794,120]
[321424275,1712182277964,-500.0,0.00054794,120]
[321424276,1712182277974,-500.0,0.00054794,120]
[321424277,1712182277982,-500.0,0.00054794,120]
[321424278,1712182277991,-973.42,0.00054794,120]
[321424279,1712182278000,-500.0,0.00054794,2]
[321424280,1712182278009,-574.05,0.00054794,120]
[321424281,1712182278018,-500.0,0.00054794,120]
[321424282,1712182278027,-500.0,0.00054794,120]
[321424283,1712182278036,-500.0,0.00054794,120]
[321424284,1712182278045,-704.16,0.00054794,120]
[321424285,1712182278055,-506.62152908,0.00054794,120]
[321424286,1712182278064,-506.20642681,0.00054794,120]
[321424287,1712182278073,-503.50830343,0.00054794,120]
[321424288,1712182278082,-500.0,0.00054794,120]
[321424289,1712182278091,-500.0,0.00054794,120]
[321424290,1712182278100,-531.21068387,0.00054794,120]
[321424291,1712182278109,-500.0,0.00054794,120]
[321424292,1712182278119,-500.0,0.00054794,120]
[321424293,1712182278128,-500.0,0.00054794,120]
[321424294,1712182278137,-500.0,0.00054794,120]
[321424295,1712182278146,-500.0,0.00054794,120]
[321424296,1712182278155,-500.0,0.00054794,120]
[321424297,1712182278165,-514.24865538,0.00054794,120]
[321424298,1712182278175,-683.55,0.00054794,120]
[321424299,1712182278184,-500.0,0.00054794,120]
[321424300,1712182278193,-611.88,0.00054794,120]
[321424301,1712182278202,-504.33119942,0.00054794,120]
[321424302,1712182278211,-500.0,0.00054794,120]
[321424303,1712182278220,-500.0,0.00054794,120]
[321424304,1712182278230,-500.0,0.00054794,2]
[321424305,1712182278239,-500.0,0.00054794,120]
[321424306,1712182278248,-500.0,0.00054794,120]
[321424307,1712182278257,-500.0,0.00054794,120]
[321424308,1712182278267,-500.0,0.00054794,120]
[321424309,1712182278276,-502.26488189,0.00054794,120]
[321424310,1712182278285,-500.0,0.00054794,120]
[321424311,1712182278294,-500.0,0.00054794,120]
[321424312,1712182278303,-500.0,0.00054794,120]
[321424313,1712182278312,-500.0,0.00054794,120]
[321424314,1712182278321,-513.90803009,0.00054794,120]
[321424315,1712182278331,-500.0,0.00054794,120]
[321424316,1712182278339,-500.0,0.00054794,120]
[321424317,1712182278349,-508.08381425,0.00054794,120]
[321424318,1712182278359,-500.0,0.00054794,120]
[321424319,1712182278370,-500.0,0.00054794,120]
[321424320,1712182278380,-500.0,0.00054794,120]
[321424321,1712182278390,-500.0,0.00054794,120]
[321424322,1712182278399,-500.0,0.00054794,120]
[321424323,1712182278409,-500.0,0.00054794,120]
[321424324,1712182278418,-500.0,0.00054794,120]
[321424325,1712182278427,-641.32,0.00054794,120]
[321424326,1712182278437,-506.45615461,0.00054794,120]
[321424327,1712182278446,-500.0,0.00054794,120]
[321424328,1712182278455,-515.47059355,0.00054794,120]
[321424329,1712182278465,-500.0,0.00054794,120]
[321424330,1712182278474,-508.23031721,0.00054794,120]
[321424331,1712182278484,-508.60080957,0.00054794,120]
[321424332,1712182278494,-253.43095902,0.00054794,2]
[321424333,1712182278504,-636.7152615,0.00054794,120]
[321424334,1712182278514,-500.0,0.00054794,120]
[321424335,1712182278524,-500.0,0.00054794,120]
[321424336,1712182278533,-500.0,0.00054794,120]
[321424337,1712182278542,-506.32092313,0.00054794,120]
[321424338,1712182278552,-520.63918074,0.00054794,120]
[321424339,1712182278562,-500.0,0.00054794,120]
[321424340,1712182278571,-500.0,0.00054794,120]
[321424341,1712182278581,-500.0,0.00054794,120]
[321424342,1712182278591,-500.0,0.00054794,120]
[321424343,1712182278602,-500.0,0.00054794,120]
[321424344,1712182278611,-500.0,0.00054794,120]
[321424345,1712182278620,-500.0,0.00054794,120]
[321424346,1712182278629,-500.0,0.00054794,120]
[321424347,1712182278640,-500.0,0.00054794,120]
[321424348,1712182278649,-500.0,0.00054794,120]
[321424349,1712182278660,-515.96764061,0.00054794,120]
[321424350,1712182278669,-500.0,0.00054794,120]
[321424351,1712182278678,-505.43292976,0.00054794,120]
[321424352,1712182278687,-554.36640592,0.00054794,120]
[321424353,1712182278696,-941.5,0.00054794,120]
[321424354,1712182278705,-500.0,0.00054794,120]
[321424355,1712182278715,-500.0,0.00054794,120]
[321424356,1712182278724,-500.0,0.00054794,120]
[321424357,1712182278733,-444.36658697,0.00054794,120]
[321424358,1712182278742,-514.34774889,0.00054794,15]
[321424359,1712182278752,-500.0,0.00054794,120]
[321424360,1712182278761,-500.0,0.00054794,120]
[321424361,1712182278772,-500.0,0.00054794,120]
[321424362,1712182278782,-506.57556221,0.00054794,120]
[321424363,1712182278791,-505.48463941,0.00054794,120]
[321424364,1712182278802,-500.0,0.00054794,120]
[321424365,1712182278813,-531.76,0.00054794,120]
[321424366,1712182278822,-500.0,0.00054794,120]
[321424367,1712182278832,-500.0,0.00054794,120]
[321424368,1712182278841,-500.0,0.00054794,120]
[321424369,1712182278853,-751.45,0.00054794,120]
[321424370,1712182278862,-542.56215447,0.00054794,120]
[321424371,1712182278873,-500.0,0.00054794,120]
[321424372,1712182278883,-351.16695928,0.00054794,120]
[321424373,1712182278892,-500.0,0.00054794,120]
[321424374,1712182278901,-500.00000055,0.00054794,120]
[321424375,1712182278912,-500.0,0.00054794,120]
[321424376,1712182278921,-500.0,0.00054794,120]
[321424377,1712182278930,-500.0,0.00054794,120]
[321424378,1712182278939,-508.49403472,0.00054794,120]
[321424379,1712182278949,-500.0,0.00054794,120]
[321424380,1712182278958,-500.0,0.00054794,120]
[321424381,1712182278967,-514.20142991,0.00054794,120]
[321424382,1712182278976,-500.0,0.00054794,120]
[321424383,1712182278985,-503.42569708,0.00054794,120]
[321424384,1712182278994,-500.0,0.00054794,120]
[321424385,1712182279003,-500.0,0.00054794,120]
[321424386,1712182279013,-500.0,0.00054794,120]
[321424387,1712182279022,-809.69,0.00054794,120]
[321424388,1712182279031,-500.0,0.00054794,120]
[321424389,1712182279040,-500.0,0.00054794,120]
[321424390,1712182279049,-658.04,0.00054794,120]
[321424391,1712182279058,-734.72,0.00054794,120]
[321424392,1712182279067,-500.0,0.00054794,120]
[321424393,1712182279077,-514.77209195,0.00054794,120]